[Event "Early-Titled-Tuesday-Blitz-October-10-2023"]
[Site "Chess.com"]
[Date "2023.10.10"]
[Round "4"]
[White "Mikhail_Bryakin"]
[Black "GradualismUnleashed"]
[Result "1/2-1/2"]
[WhiteElo "2794"]
[BlackElo "2573"]
[TimeControl "180+1"]
[EndTime "8:39:03 PDT"]
[Termination "Game drawn by agreement"]

1. Nf3 {[%clk 0:02:56.2]} 1... Nf6 {[%clk 0:02:59.8]} 2. b3 {[%clk 0:02:55.9]}
2... b6 {[%clk 0:02:57.8]} 3. Bb2 {[%clk 0:02:56.3]} 3... Bb7 {[%clk 0:02:58.7]}
4. g3 {[%clk 0:02:55.9]} 4... g6 {[%clk 0:02:59.1]} 5. Bg2 {[%clk 0:02:56.4]}
5... Bg7 {[%clk 0:02:59.8]} 6. O-O {[%clk 0:02:57]} 6... O-O {[%clk 0:03:00.4]}
7. c4 {[%clk 0:02:57.6]} 7... c5 {[%clk 0:02:59.6]} 8. d4 {[%clk 0:02:57.2]}
8... d5 {[%clk 0:02:55.7]} 9. dxc5 {[%clk 0:02:56.9]} 9... dxc4 {[%clk
0:02:55.8]} 10. cxb6 {[%clk 0:02:55.7]} 10... axb6 {[%clk 0:02:42.7]} 11. Qxd8
{[%clk 0:02:54.3]} 11... Rxd8 {[%clk 0:02:42]} 12. bxc4 {[%clk 0:02:55]} 12...
Nc6 {[%clk 0:02:38.1]} 13. Nbd2 {[%clk 0:02:52.8]} 13... Nb4 {[%clk 0:02:29.7]}
14. Rfe1 {[%clk 0:02:51.2]} 14... Nc2 {[%clk 0:02:27.5]} 15. Rec1 {[%clk
0:02:39.8]} 15... Nxa1 {[%clk 0:02:27.3]} 16. Rxa1 {[%clk 0:02:40.7]} 16... Ne4
{[%clk 0:02:20]} 17. Bxg7 {[%clk 0:02:38.8]} 17... Nxd2 {[%clk 0:02:18.6]} 18.
Be5 {[%clk 0:02:35]} 18... Nxf3+ {[%clk 0:02:16.9]} 19. Bxf3 {[%clk 0:02:27.2]}
19... Bxf3 {[%clk 0:02:16.3]} 20. exf3 {[%clk 0:02:28.1]} 20... Rd2 {[%clk
0:02:15.9]} 21. a4 {[%clk 0:02:26.6]} 21... Rc2 {[%clk 0:02:11.7]} 22. Rb1
{[%clk 0:02:24.6]} 22... Rxc4 {[%clk 0:02:08.4]} 23. Rxb6 {[%clk 0:02:24.6]}
23... Rcxa4 {[%clk 0:02:06.7]} 24. Bf4 {[%clk 0:02:23.2]} 24... f6 {[%clk
0:02:03.8]} 25. Be3 {[%clk 0:02:22.7]} 25... Kf7 {[%clk 0:02:03]} 26. Rb7 {[%clk
0:02:23.3]} 26... Rc4 {[%clk 0:02:01.4]} 27. Kg2 {[%clk 0:02:22.6]} 27... Rac8
{[%clk 0:02:01.4]} 28. h4 {[%clk 0:02:19.6]} 28... R8c7 {[%clk 0:02:01.5]} 29.
Rb8 {[%clk 0:02:19.9]} 29... h5 {[%clk 0:02:00.8]} 30. Ra8 {[%clk 0:02:17.5]}
30... Rc2 {[%clk 0:01:57.8]} 31. Rb8 {[%clk 0:02:15.6]} 31... Ra2 {[%clk
0:01:57.1]} 32. Rd8 {[%clk 0:02:14.4]} 32... e5 {[%clk 0:01:56.2]} 33. Rb8
{[%clk 0:02:13.5]} 33... Ra6 {[%clk 0:01:53.8]} 34. Rh8 {[%clk 0:02:11.5]} 34...
Ke6 {[%clk 0:01:53.1]} 35. Re8+ {[%clk 0:02:11.1]} 35... Re7 {[%clk 0:01:51.5]}
36. Rg8 {[%clk 0:02:11.6]} 36... Kf7 {[%clk 0:01:50.9]} 37. Rh8 {[%clk
0:02:10.4]} 37... f5 {[%clk 0:01:49.6]} 38. Rh7+ {[%clk 0:02:09.1]} 38... Ke6
{[%clk 0:01:49.1]} 39. Rh6 {[%clk 0:02:07.8]} 39... Rg7 {[%clk 0:01:49]} 40. Rh8
{[%clk 0:02:06.4]} 40... Rc6 {[%clk 0:01:44.7]} 41. Bh6 {[%clk 0:02:06]} 41...
Rf7 {[%clk 0:01:42]} 42. Rg8 {[%clk 0:02:05.7]} 42... Kd7 {[%clk 0:01:42.2]} 43.
Ra8 {[%clk 0:02:03]} 43... Kd6 {[%clk 0:01:36.8]} 44. Rg8 {[%clk 0:02:00.6]}
44... Kd5 {[%clk 0:01:36.3]} 45. Rd8+ {[%clk 0:02:00]} 45... Rd6 {[%clk
0:01:36.1]} 46. Re8 {[%clk 0:02:00.7]} 46... e4 {[%clk 0:01:34.1]} 47. Bf4
{[%clk 0:02:01.3]} 47... Re6 {[%clk 0:01:33.7]} 48. Rd8+ {[%clk 0:02:01.9]}
48... Kc6 {[%clk 0:01:33.7]} 49. Rc8+ {[%clk 0:01:59.1]} 49... Kd7 {[%clk
0:01:30.2]} 50. Rc7+ {[%clk 0:01:59.4]} 50... Ke8 {[%clk 0:01:30.5]} 51. Rc8+
{[%clk 0:01:59.6]} 51... Ke7 {[%clk 0:01:28.9]} 52. Rc7+ {[%clk 0:02:00.1]}
52... Kf6 {[%clk 0:01:27.7]} 53. Bg5+ {[%clk 0:01:59.4]} 53... Kg7 {[%clk
0:01:27.9]} 54. Bh6+ {[%clk 0:01:59.5]} 54... Kg8 {[%clk 0:01:24.1]} 55. Rc8+
{[%clk 0:01:59.7]} 55... Kh7 {[%clk 0:01:24.2]} 56. Be3 {[%clk 0:02:00.1]} 56...
exf3+ {[%clk 0:01:23.2]} 57. Kxf3 {[%clk 0:02:01]} 57... Ree7 {[%clk 0:01:22.2]}
58. Bd4 {[%clk 0:02:00.2]} 58... Kh6 {[%clk 0:01:05.7]} 59. Be3+ {[%clk
0:02:00.2]} 59... Kh7 {[%clk 0:01:00.2]} 60. Bd4 {[%clk 0:02:00.3]} 60... Rg7
{[%clk 0:01:00.7]} 61. Bxg7 {[%clk 0:01:59.4]} 61... Kxg7 {[%clk 0:01:01.6]} 62.
Kf4 {[%clk 0:01:59.3]} 62... Re4+ {[%clk 0:01:00.9]} 63. Kf3 {[%clk 0:01:59.9]}
63... Re7 {[%clk 0:01:01.1]} 64. Rc6 {[%clk 0:01:59.8]} 64... Kf7 {[%clk
0:01:01]} 65. Rd6 {[%clk 0:01:59.8]} 65... Kg7 {[%clk 0:01:01.2]} 66. Rd4 {[%clk
0:01:58.5]} 66... Kf7 {[%clk 0:01:01.3]} 67. Kf4 {[%clk 0:01:58.1]} 67... Re2
{[%clk 0:00:53.9]} 68. f3 {[%clk 0:01:54.6]} 68... Rg2 {[%clk 0:00:54]} 69. Rd6
{[%clk 0:01:52.2]} 69... Kg7 {[%clk 0:00:52.3]} 70. Ra6 {[%clk 0:01:50.2]} 70...
Kf7 {[%clk 0:00:52.4]} 71. Ra3 {[%clk 0:01:50]} 71... Rg1 {[%clk 0:00:52.1]} 72.
Ra2 {[%clk 0:01:49.8]} 72... Kf6 {[%clk 0:00:51.5]} 73. Rd2 {[%clk 0:01:49.8]}
73... Ke6 {[%clk 0:00:50.2]} 74. Rc2 {[%clk 0:01:49.6]} 74... Kf6 {[%clk
0:00:50.5]} 75. Rc6+ {[%clk 0:01:49.7]} 75... Kf7 {[%clk 0:00:50.4]} 76. Rc3
{[%clk 0:01:39.9]} 76... Kf6 {[%clk 0:00:50.5]} 77. Rb3 {[%clk 0:01:40]} 77...
Kf7 {[%clk 0:00:50.7]} 78. Ke5 {[%clk 0:01:33.4]} 78... Rxg3 {[%clk 0:00:48.8]}
79. Rb7+ {[%clk 0:01:34]} 79... Ke8 {[%clk 0:00:43.3]} 80. f4 {[%clk 0:01:29.9]}
80... Rg4 {[%clk 0:00:41]} 81. Rb6 {[%clk 0:01:29.1]} 81... Kf7 {[%clk
0:00:40.6]} 82. Rb7+ {[%clk 0:01:29.5]} 82... Ke8 {[%clk 0:00:40.1]} 83. Ke6
{[%clk 0:01:29.1]} 83... Kd8 {[%clk 0:00:39.7]} 84. Kd6 {[%clk 0:01:05.6]} 84...
Kc8 {[%clk 0:00:39]} 85. Rc7+ {[%clk 0:01:06.3]} 85... Kb8 {[%clk 0:00:38.9]}
86. Rg7 {[%clk 0:01:01.8]} 86... Rxh4 {[%clk 0:00:36.6]} 87. Rxg6 {[%clk
0:01:00.2]} 87... Rxf4 {[%clk 0:00:37.2]} 88. Ke5 {[%clk 0:01:00.4]} 88... Rf1
{[%clk 0:00:36.7]} 89. Rh6 {[%clk 0:01:00.4]} 89... Kc7 {[%clk 0:00:36]} 90.
Rxh5 {[%clk 0:01:00.4]} 90... f4 {[%clk 0:00:36.5]} 91. Ke4 {[%clk 0:01:00.9]}
91... f3 {[%clk 0:00:36.6]} 92. Ke3 {[%clk 0:01:01.4]} 92... f2 {[%clk
0:00:36.2]} 93. Ke2 {[%clk 0:01:01.9]} 93... Rb1 {[%clk 0:00:35.6]} 94. Kxf2
{[%clk 0:01:02.5]} 94... Rb2+ {[%clk 0:00:36]} 95. Ke3 {[%clk 0:01:02.8]} 95...
Rb6 {[%clk 0:00:36.9]} 96. Kd4 {[%clk 0:01:02.2]} 96... Rd6+ {[%clk 0:00:37]}
97. Kc5 {[%clk 0:01:02.4]} 97... Rc6+ {[%clk 0:00:36.9]} 98. Kd5 {[%clk
0:01:03]} 98... Rd6+ {[%clk 0:00:37.4]} 99. Ke5 {[%clk 0:01:03.6]} 99... Rd7
{[%clk 0:00:37.2]} 100. Rh6 {[%clk 0:01:03.5]} 100... Re7+ {[%clk 0:00:36.5]}
1/2-1/2

[Event "Early-Titled-Tuesday-Blitz-October-10-2023"]
[Site "Chess.com"]
[Date "2023.10.10"]
[Round "4"]
[White "MidnightFox"]
[Black "farzadbfd"]
[Result "0-1"]
[WhiteElo "2495"]
[BlackElo "2705"]
[TimeControl "180+1"]
[EndTime "8:39:05 PDT"]
[Termination "farzadbfd won by checkmate"]

1. d4 {[%clk 0:03:00.9]} 1... Nf6 {[%clk 0:02:59.2]} 2. c4 {[%clk 0:02:58.7]}
2... e6 {[%clk 0:02:59.4]} 3. g3 {[%clk 0:02:58.8]} 3... d5 {[%clk 0:02:58.6]}
4. Bg2 {[%clk 0:02:58.7]} 4... Bb4+ {[%clk 0:02:54.9]} 5. Nd2 {[%clk 0:02:57.8]}
5... c6 {[%clk 0:02:54.2]} 6. Qc2 {[%clk 0:02:56.8]} 6... O-O {[%clk 0:02:54.2]}
7. Nf3 {[%clk 0:02:56.7]} 7... Ne4 {[%clk 0:02:52.2]} 8. O-O {[%clk 0:02:56.6]}
8... f5 {[%clk 0:02:52.1]} 9. b3 {[%clk 0:02:52.9]} 9... Nd7 {[%clk 0:02:50.9]}
10. Bb2 {[%clk 0:02:49.1]} 10... g5 {[%clk 0:02:46]} 11. Nxe4 {[%clk 0:02:37.4]}
11... fxe4 {[%clk 0:02:46]} 12. Ne5 {[%clk 0:02:37.8]} 12... Nxe5 {[%clk
0:02:27.7]} 13. dxe5 {[%clk 0:02:38.7]} 13... Qb6 {[%clk 0:02:28]} 14. e3 {[%clk
0:02:23.6]} 14... Bd7 {[%clk 0:02:24.5]} 15. Rac1 {[%clk 0:02:14.3]} 15... Be8
{[%clk 0:02:11.9]} 16. Qe2 {[%clk 0:02:14.3]} 16... h5 {[%clk 0:02:04.8]} 17.
Bd4 {[%clk 0:02:01.7]} 17... Qd8 {[%clk 0:01:56]} 18. cxd5 {[%clk 0:01:57]}
18... cxd5 {[%clk 0:01:55.3]} 19. Bc5 {[%clk 0:01:52.1]} 19... Bxc5 {[%clk
0:01:54.3]} 20. Rxc5 {[%clk 0:01:53]} 20... Qb8 {[%clk 0:01:07.9]} 21. Qb2
{[%clk 0:01:42.3]} 21... Rf5 {[%clk 0:01:08.2]} 22. f4 {[%clk 0:01:33]} 22...
exf3 {[%clk 0:00:53.8]} 23. Rxf3 {[%clk 0:01:31.6]} 23... Qxe5 {[%clk
0:00:54.2]} 24. Qxe5 {[%clk 0:01:15.8]} 24... Rxe5 {[%clk 0:00:55.1]} 25. Rc7
{[%clk 0:01:15.5]} 25... g4 {[%clk 0:00:37.9]} 26. Rf6 {[%clk 0:01:08.5]} 26...
Rxe3 {[%clk 0:00:38.2]} 27. Rxb7 {[%clk 0:00:56.2]} 27... Rc8 {[%clk 0:00:37.8]}
28. Rxa7 {[%clk 0:00:49]} 28... Rc1+ {[%clk 0:00:25]} 29. Kf2 {[%clk 0:00:42.6]}
29... Re5 {[%clk 0:00:18.9]} 30. Ra8 {[%clk 0:00:40.6]} 30... Kg7 {[%clk
0:00:18.7]} 31. Rf4 {[%clk 0:00:36.4]} 31... Rc2+ {[%clk 0:00:18.3]} 32. Kg1
{[%clk 0:00:29.5]} 32... Re1+ {[%clk 0:00:18.2]} 33. Rf1 {[%clk 0:00:25.8]}
33... Rxf1+ {[%clk 0:00:16.7]} 34. Bxf1 {[%clk 0:00:26.7]} 34... Bg6 {[%clk
0:00:15.5]} 35. b4 {[%clk 0:00:19.5]} 35... d4 {[%clk 0:00:14.8]} 36. a4 {[%clk
0:00:17.8]} 36... Rb2 {[%clk 0:00:14.3]} 37. b5 {[%clk 0:00:17.6]} 37... d3
{[%clk 0:00:12]} 38. Rd8 {[%clk 0:00:17.8]} 38... Rb3 {[%clk 0:00:09.8]} 39. Kf2
{[%clk 0:00:15.6]} 39... e5 {[%clk 0:00:09.1]} 40. Ke3 {[%clk 0:00:15.4]} 40...
e4 {[%clk 0:00:09.6]} 41. Bg2 {[%clk 0:00:12]} 41... Rb4 {[%clk 0:00:09.4]} 42.
Rd7+ {[%clk 0:00:10.5]} 42... Kf6 {[%clk 0:00:09.5]} 43. Rd6+ {[%clk 0:00:09.5]}
43... Kf7 {[%clk 0:00:10.2]} 44. b6 {[%clk 0:00:09.5]} 44... Rxa4 {[%clk
0:00:09.9]} 45. Rd7+ {[%clk 0:00:10]} 45... Ke6 {[%clk 0:00:09.9]} 46. Rc7
{[%clk 0:00:09.3]} 46... Rb4 {[%clk 0:00:10]} 47. b7 {[%clk 0:00:09.5]} 47...
Bf5 {[%clk 0:00:10]} 48. Rc6+ {[%clk 0:00:09.3]} 48... Kd5 {[%clk 0:00:10.1]}
49. Rf6 {[%clk 0:00:08.2]} 49... Ke5 {[%clk 0:00:09]} 50. Rf8 {[%clk 0:00:01]}
50... Rxb7 {[%clk 0:00:08]} 51. Rxf5+ {[%clk 0:00:01.1]} 51... Ke6 {[%clk
0:00:02.6]} 52. Bxe4 {[%clk 0:00:02]} 52... Rb3 {[%clk 0:00:02.1]} 53. Bb7
{[%clk 0:00:02.9]} 53... d2+ {[%clk 0:00:02.1]} 54. Kxd2 {[%clk 0:00:03]} 54...
Kxf5 {[%clk 0:00:03]} 55. Bd5 {[%clk 0:00:03.3]} 55... Rb2+ {[%clk 0:00:03.5]}
56. Ke3 {[%clk 0:00:03.6]} 56... Rxh2 {[%clk 0:00:04.4]} 57. Bc4 {[%clk
0:00:03.4]} 57... Rb2 {[%clk 0:00:05.3]} 58. Bd3+ {[%clk 0:00:03.8]} 58... Ke5
{[%clk 0:00:06.2]} 59. Be2 {[%clk 0:00:03.1]} 59... Rb3+ {[%clk 0:00:06.6]} 60.
Bd3 {[%clk 0:00:03.4]} 60... Ra3 {[%clk 0:00:07.3]} 61. Kd2 {[%clk 0:00:03.7]}
61... Kd4 {[%clk 0:00:07.9]} 62. Ke2 {[%clk 0:00:04.6]} 62... Rxd3 {[%clk
0:00:08]} 63. Kf2 {[%clk 0:00:05.1]} 63... Rf3+ {[%clk 0:00:08.6]} 64. Kg2
{[%clk 0:00:06]} 64... Ke3 {[%clk 0:00:09]} 65. Kh2 {[%clk 0:00:06.9]} 65... Kf2
{[%clk 0:00:09.3]} 66. Kh1 {[%clk 0:00:06.7]} 66... Rxg3 {[%clk 0:00:10]} 67.
Kh2 {[%clk 0:00:07.3]} 67... Rh3# {[%clk 0:00:10.7]} 0-1

[Event "Early-Titled-Tuesday-Blitz-October-10-2023"]
[Site "Chess.com"]
[Date "2023.10.10"]
[Round "4"]
[White "RETURNOFTHELAGGER"]
[Black "Herzog2012"]
[Result "1-0"]
[WhiteElo "2671"]
[BlackElo "2493"]
[TimeControl "180+1"]
[EndTime "8:39:06 PDT"]
[Termination "RETURNOFTHELAGGER won by resignation"]

1. e4 {[%clk 0:03:00.9]} 1... c5 {[%clk 0:02:59.9]} 2. b3 {[%clk 0:02:59.6]}
2... g6 {[%clk 0:02:57.5]} 3. Bb2 {[%clk 0:02:58.6]} 3... Nf6 {[%clk 0:02:58]}
4. Nc3 {[%clk 0:02:59]} 4... Nc6 {[%clk 0:02:54.1]} 5. Nd5 {[%clk 0:02:55]} 5...
Bg7 {[%clk 0:02:46.2]} 6. Nxf6+ {[%clk 0:02:53.5]} 6... exf6 {[%clk 0:02:46.1]}
7. Bc4 {[%clk 0:02:49]} 7... O-O {[%clk 0:02:45.5]} 8. Ne2 {[%clk 0:02:48.1]}
8... Re8 {[%clk 0:02:44.8]} 9. d3 {[%clk 0:02:41.2]} 9... d6 {[%clk 0:02:34.3]}
10. O-O {[%clk 0:02:39.9]} 10... Be6 {[%clk 0:02:33.7]} 11. Bb5 {[%clk
0:02:30.2]} 11... a6 {[%clk 0:02:32.4]} 12. Bxc6 {[%clk 0:02:27.4]} 12... bxc6
{[%clk 0:02:33.3]} 13. Nf4 {[%clk 0:02:28.3]} 13... f5 {[%clk 0:02:28.3]} 14.
Bxg7 {[%clk 0:02:25.7]} 14... Kxg7 {[%clk 0:02:29.2]} 15. Qf3 {[%clk 0:02:25.9]}
15... Qf6 {[%clk 0:02:20.9]} 16. Nxe6+ {[%clk 0:02:19.1]} 16... fxe6 {[%clk
0:02:09.7]} 17. exf5 {[%clk 0:02:20]} 17... d5 {[%clk 0:02:00]} 18. fxg6 {[%clk
0:01:48.7]} 18... Qxf3 {[%clk 0:01:56.2]} 19. gxf3 {[%clk 0:01:49.6]} 19... hxg6
{[%clk 0:01:49]} 20. Rfe1 {[%clk 0:01:50.1]} 20... Kf6 {[%clk 0:01:48.4]} 21.
Re3 {[%clk 0:01:40.2]} 21... a5 {[%clk 0:01:43]} 22. Rae1 {[%clk 0:01:40.6]}
22... a4 {[%clk 0:01:41.6]} 23. f4 {[%clk 0:01:34.3]} 23... axb3 {[%clk
0:01:41.4]} 24. axb3 {[%clk 0:01:35.2]} 24... Ra2 {[%clk 0:01:36.5]} 25. R1e2
{[%clk 0:01:33.7]} 25... Ra1+ {[%clk 0:01:33.5]} 26. Kg2 {[%clk 0:01:33.4]}
26... Rc1 {[%clk 0:01:30.9]} 27. Re5 {[%clk 0:01:30.6]} 27... Re7 {[%clk
0:01:27.1]} 28. h4 {[%clk 0:01:28.5]} 28... Re8 {[%clk 0:01:22.2]} 29. h5 {[%clk
0:01:28.7]} 29... gxh5 {[%clk 0:01:19.1]} 30. Rxh5 {[%clk 0:01:29.6]} 30... Rg8+
{[%clk 0:01:19]} 31. Kf3 {[%clk 0:01:25.8]} 31... Rg6 {[%clk 0:01:09.2]} 32. Rh7
{[%clk 0:01:19.7]} 32... Ra1 {[%clk 0:00:40.1]} 33. Rc7 {[%clk 0:01:18.5]} 33...
Rh1 {[%clk 0:00:38.3]} 34. Ke3 {[%clk 0:01:11.4]} 34... Rh3+ {[%clk 0:00:33.1]}
35. Kd2 {[%clk 0:01:11.1]} 35... Rf3 {[%clk 0:00:04.2]} 36. Rxc6 {[%clk
0:01:12]} 36... Kf5 {[%clk 0:00:04.3]} 37. Re5+ {[%clk 0:00:49.6]} 37... Kxf4
{[%clk 0:00:03]} 38. Rexe6 {[%clk 0:00:50.5]} 38... Rxe6 {[%clk 0:00:02.5]} 39.
Rxe6 {[%clk 0:00:51.4]} 39... Rxf2+ {[%clk 0:00:02.7]} 40. Kc1 {[%clk
0:00:47.8]} 40... c4 {[%clk 0:00:02.3]} 41. bxc4 {[%clk 0:00:32.7]} 41... dxc4
{[%clk 0:00:03.2]} 42. Re4+ {[%clk 0:00:32.9]} 42... Kf5 {[%clk 0:00:02.8]} 43.
Rxc4 {[%clk 0:00:32.9]} 43... Ke5 {[%clk 0:00:03.4]} 44. Re4+ {[%clk 0:00:31.6]}
44... Kd5 {[%clk 0:00:03]} 45. Kb2 {[%clk 0:00:30.6]} 45... Rf1 {[%clk
0:00:03.2]} 46. Kc3 {[%clk 0:00:30]} 46... Rc1 {[%clk 0:00:03.7]} 47. Rd4+
{[%clk 0:00:30.2]} 47... Kc5 {[%clk 0:00:03.7]} 48. Rg4 {[%clk 0:00:28.4]} 48...
Ra1 {[%clk 0:00:03]} 49. d4+ {[%clk 0:00:27.3]} 49... Kd5 {[%clk 0:00:03]} 50.
Kd3 {[%clk 0:00:26.5]} 50... Ra3+ {[%clk 0:00:02.2]} 51. c3 {[%clk 0:00:25.8]}
51... Ra1 {[%clk 0:00:02.2]} 52. Rg5+ {[%clk 0:00:24.6]} 52... Kc6 {[%clk
0:00:02.5]} 53. Rc5+ {[%clk 0:00:20.4]} 53... Kd6 {[%clk 0:00:02.5]} 54. Rh5
{[%clk 0:00:18.4]} 54... Rd1+ {[%clk 0:00:02.7]} 55. Kc4 {[%clk 0:00:19]} 55...
Rc1 {[%clk 0:00:03.2]} 56. d5 {[%clk 0:00:18]} 56... Rd1 {[%clk 0:00:02.3]} 57.
Rh6+ {[%clk 0:00:18.4]} 57... Kd7 {[%clk 0:00:01.8]} 58. Kc5 {[%clk 0:00:17.2]}
58... Rc1 {[%clk 0:00:01.2]} 59. c4 {[%clk 0:00:17.8]} 59... Kc7 {[%clk
0:00:01.8]} 60. d6+ {[%clk 0:00:16.9]} 60... Kd8 {[%clk 0:00:02]} 61. Kd5 {[%clk
0:00:16]} 61... Rd1+ {[%clk 0:00:01.9]} 62. Kc6 {[%clk 0:00:16.3]} 1-0

[Event "Early-Titled-Tuesday-Blitz-October-10-2023"]
[Site "Chess.com"]
[Date "2023.10.10"]
[Round "4"]
[White "Rosh1610"]
[Black "Larina_Maria"]
[Result "1-0"]
[WhiteElo "2442"]
[BlackElo "2214"]
[TimeControl "180+1"]
[EndTime "8:39:06 PDT"]
[Termination "Rosh1610 won by checkmate"]

1. e4 {[%clk 0:02:58.9]} 1... c6 {[%clk 0:02:59.9]} 2. Nc3 {[%clk 0:02:58.7]}
2... d5 {[%clk 0:03:00.3]} 3. Nf3 {[%clk 0:02:59.3]} 3... Bg4 {[%clk 0:03:00.5]}
4. h3 {[%clk 0:02:58.3]} 4... Bxf3 {[%clk 0:03:00.9]} 5. Qxf3 {[%clk 0:02:59.2]}
5... e6 {[%clk 0:03:01.6]} 6. Be2 {[%clk 0:02:58.4]} 6... g6 {[%clk 0:02:55.6]}
7. O-O {[%clk 0:02:54.7]} 7... Bg7 {[%clk 0:02:55.7]} 8. d3 {[%clk 0:02:54.2]}
8... Ne7 {[%clk 0:02:55.5]} 9. Bg5 {[%clk 0:02:52.4]} 9... Nd7 {[%clk
0:02:47.8]} 10. Rad1 {[%clk 0:02:50.1]} 10... O-O {[%clk 0:02:46.4]} 11. d4
{[%clk 0:02:49.7]} 11... f6 {[%clk 0:02:24.9]} 12. Bh4 {[%clk 0:02:45.6]} 12...
dxe4 {[%clk 0:02:23.3]} 13. Nxe4 {[%clk 0:02:43.6]} 13... Nf5 {[%clk 0:02:22.6]}
14. Bg3 {[%clk 0:02:40.4]} 14... Nxg3 {[%clk 0:02:21.9]} 15. Qxg3 {[%clk
0:02:37.8]} 15... Nb6 {[%clk 0:02:15.7]} 16. Nc5 {[%clk 0:02:37.6]} 16... Re8
{[%clk 0:02:10.2]} 17. Nxb7 {[%clk 0:02:36.2]} 17... Qe7 {[%clk 0:02:10.6]} 18.
Nc5 {[%clk 0:02:34.3]} 18... Rad8 {[%clk 0:02:05.6]} 19. Rfe1 {[%clk 0:02:32.2]}
19... e5 {[%clk 0:01:59.4]} 20. Bf3 {[%clk 0:02:28.7]} 20... Nd5 {[%clk
0:01:38.8]} 21. Nd3 {[%clk 0:02:17.4]} 21... Qc7 {[%clk 0:01:19]} 22. dxe5
{[%clk 0:02:16]} 22... fxe5 {[%clk 0:01:18.9]} 23. c4 {[%clk 0:02:05.7]} 23...
Nf4 {[%clk 0:01:13.3]} 24. Nb4 {[%clk 0:01:27.7]} 24... c5 {[%clk 0:01:00.6]}
25. Nd5 {[%clk 0:01:27.4]} 25... Nxd5 {[%clk 0:01:00.4]} 26. Bxd5+ {[%clk
0:01:27.3]} 26... Kh8 {[%clk 0:01:01]} 27. f3 {[%clk 0:01:23.2]} 27... a5 {[%clk
0:00:57.9]} 28. b3 {[%clk 0:01:18.5]} 28... Bh6 {[%clk 0:00:52.6]} 29. Re4
{[%clk 0:01:15.7]} 29... Bf4 {[%clk 0:00:51.1]} 30. Qh4 {[%clk 0:01:12.9]} 30...
Rf8 {[%clk 0:00:38.1]} 31. Rde1 {[%clk 0:01:04.1]} 31... Qg7 {[%clk 0:00:32.8]}
32. Qf2 {[%clk 0:00:33.4]} 32... Qc7 {[%clk 0:00:31.8]} 33. Kh1 {[%clk
0:00:32.8]} 33... Rde8 {[%clk 0:00:26.4]} 34. Qh4 {[%clk 0:00:31.9]} 34... Qe7
{[%clk 0:00:20.8]} 35. Qf2 {[%clk 0:00:24.6]} 35... Qc7 {[%clk 0:00:19.2]} 36.
Qb2 {[%clk 0:00:24.2]} 36... Qg7 {[%clk 0:00:18.5]} 37. Qc3 {[%clk 0:00:23.2]}
37... Qc7 {[%clk 0:00:15.3]} 38. R1e2 {[%clk 0:00:18.9]} 38... Re7 {[%clk
0:00:15.3]} 39. Kg1 {[%clk 0:00:18.1]} 39... Rfe8 {[%clk 0:00:14]} 40. Rxf4
{[%clk 0:00:17.6]} 40... Qd6 {[%clk 0:00:11.1]} 41. Rfe4 {[%clk 0:00:17.4]}
41... Qf6 {[%clk 0:00:10.7]} 42. Kh1 {[%clk 0:00:17.6]} 42... h5 {[%clk
0:00:10.7]} 43. Qxa5 {[%clk 0:00:16.7]} 43... Kg7 {[%clk 0:00:10]} 44. Qc3
{[%clk 0:00:17]} 44... Kh6 {[%clk 0:00:09.5]} 45. a4 {[%clk 0:00:17.1]} 45...
Qb6 {[%clk 0:00:08.8]} 46. a5 {[%clk 0:00:16.9]} 46... Qd6 {[%clk 0:00:08.6]}
47. a6 {[%clk 0:00:16.4]} 47... Qxa6 {[%clk 0:00:07.8]} 48. Rxe5 {[%clk
0:00:16.7]} 48... Qd6 {[%clk 0:00:07]} 49. Qe3+ {[%clk 0:00:15.4]} 49... Kg7
{[%clk 0:00:04.8]} 50. Rxe7+ {[%clk 0:00:16.3]} 50... Rxe7 {[%clk 0:00:05.7]}
51. Qxe7+ {[%clk 0:00:16.7]} 51... Qxe7 {[%clk 0:00:06.6]} 52. Rxe7+ {[%clk
0:00:16.8]} 52... Kf6 {[%clk 0:00:06.7]} 53. Rc7 {[%clk 0:00:16.7]} 53... Kg5
{[%clk 0:00:07.1]} 54. Rxc5 {[%clk 0:00:17.6]} 54... h4 {[%clk 0:00:08]} 55. b4
{[%clk 0:00:18.3]} 55... Kf4 {[%clk 0:00:08.9]} 56. b5 {[%clk 0:00:19]} 56...
Kg3 {[%clk 0:00:09.8]} 57. b6 {[%clk 0:00:19.8]} 57... g5 {[%clk 0:00:10.7]} 58.
b7 {[%clk 0:00:19.8]} 58... g4 {[%clk 0:00:11.6]} 59. b8=Q+ {[%clk 0:00:19.1]}
59... Kf2 {[%clk 0:00:10.7]} 60. Qb2+ {[%clk 0:00:20]} 60... Kg3 {[%clk
0:00:10.8]} 61. Qe5+ {[%clk 0:00:20.7]} 61... Kf2 {[%clk 0:00:10.8]} 62. fxg4
{[%clk 0:00:21.1]} 62... Kf1 {[%clk 0:00:10.4]} 63. Qe4 {[%clk 0:00:20.6]} 63...
Kf2 {[%clk 0:00:10.4]} 64. Rb5 {[%clk 0:00:21.2]} 64... Kg3 {[%clk 0:00:10.6]}
65. Rb3+ {[%clk 0:00:20.6]} 65... Kf2 {[%clk 0:00:10.7]} 66. Qe3+ {[%clk
0:00:21.3]} 66... Kf1 {[%clk 0:00:10.8]} 67. Rb1# {[%clk 0:00:22.2]} 1-0